bitfinex/quotes_ETHUSD_20241106
["timestamp","ask_amount","ask_price","bid_price","bid_amount"]
[1730893813783,3.87941598,2632.3,2631.9,3.79951]
[1730893814014,4.70941598,2632.4,2631.9,3.79946]
[1730893814324,7.59841,2632.2,2631.7,3.7998]
[1730893814540,7.67879598,2632.2,2631.7,3.7998]
[1730893814712,3.87955598,2632.2,2631.7,3.7998]
[1730893815018,3.79925,2632.1,2631.7,3.7998]
[1730893815220,3.87955598,2632.2,2631.7,3.7998]
[1730893815525,3.79925,2632.1,2631.7,3.7998]
[1730893815885,4.69888598,2632.0,2631.5,3.80009]
[1730893816330,8.49840598,2632.0,2631.5,3.80009]
[1730893816532,3.79953,2631.9,2631.5,3.80009]
[1730893816828,0.8191,2632.0,2631.5,3.80002]
[1730893817231,4.61849,2632.0,2631.6,3.79995]
[1730893817389,0.8191,2632.0,2631.7,3.87574122]
[1730893817587,0.8191,2632.0,2631.7,3.79975]
[1730893818332,0.8191,2632.0,2631.7,7.59947]
[1730893818540,0.8191,2632.0,2631.7,3.79972]
[1730893818699,0.8191,2632.0,2631.8,3.79965]
[1730893819812,0.7922,2632.2,2631.9,3.79953]
[1730893820011,0.7628,2632.4,2632.0,3.79927]
[1730893820231,4.56164,2632.4,2631.8,3.79959]
[1730893820539,3.79895,2632.3,2631.8,7.5992]
[1730893820703,3.79895,2632.3,2631.8,3.79959]
[1730893821039,4.56164,2632.4,2631.9,3.79952]
[1730893821340,3.79898,2632.3,2631.9,3.79952]
[1730893821544,4.56164,2632.4,2631.9,3.79952]
[1730893821747,0.7628,2632.4,2632.0,3.79932]
[1730893821907,0.7628,2632.4,2632.1,3.79921]
[1730893822740,0.7628,2632.4,2632.0,3.79938]
[1730893822957,0.7628,2632.4,2632.0,3.79929]
[1730893823253,0.7628,2632.4,2632.0,3.79927]
[1730893824051,0.8094,2632.6,2632.2,3.79903]
[1730893824653,0.8094,2632.6,2632.2,7.59805]
[1730893825164,0.8094,2632.6,2632.2,3.79902]
[1730893825315,4.6242,2632.9,2632.4,3.7987]
[1730893825647,0.90648598,2632.9,2632.5,3.79858]
[1730893825864,0.9700456,2632.8,2632.5,3.79858]
[1730893826030,0.9700456,2632.8,2632.2,3.799]
[1730893826227,4.70457598,2632.9,2632.4,3.7988]
[1730893826958,8.50276598,2632.9,2632.4,3.7988]
[1730893827136,8.42238,2632.9,2632.4,3.7988]
[1730893827551,3.87863598,2632.8,2632.4,3.7988]
[1730893828330,3.87863598,2632.8,2632.3,3.79895]
[1730893828658,5.22851858,2632.8,2632.3,3.79895]
[1730893829160,5.22851858,2632.8,2632.4,3.79881]
[1730893829521,1.43026858,2632.8,2632.4,3.79874]
[1730893829760,4.70459598,2632.9,2632.4,7.59747]
[1730893829935,0.8261,2632.9,2632.6,3.79843]
[1730893830135,0.7744,2633.1,2632.7,3.79836]
[1730893830358,3.79798,2633.0,2632.5,4.60288]
[1730893830653,4.65260598,2633.1,2632.5,3.79857]
[1730893830839,4.65260598,2633.1,2632.7,3.79835]
[1730893831542,0.85478598,2633.1,2632.7,3.79835]
[1730893831752,0.85478598,2633.1,2632.6,3.7984]
[1730893831947,0.7744,2633.1,2632.8,3.79815]
[1730893832264,0.7744,2633.1,2632.7,3.87845089]
[1730893832450,0.7744,2633.1,2632.9,0.07981466]
[1730893832636,0.7744,2633.1,2632.8,0.07986088]
[1730893832837,0.7744,2633.1,2632.7,3.79837]
[1730893833224,5.05969722,2633.1,2632.8,0.07986088]
[1730893833431,3.87834598,2633.0,2632.5,7.59716]
[1730893833642,3.87834598,2633.0,2632.6,0.07995333]
[1730893833965,3.87834598,2633.0,2632.6,3.87845333]
[1730893834571,3.79811,2632.9,2632.6,0.07995333]
[1730893834766,3.79795,2633.0,2632.6,0.07995333]
[1730893834938,4.31194432,2633.0,2632.6,3.87842333]
[1730893836025,0.51399432,2633.0,2632.7,3.79825]
[1730893836224,0.7744,2633.1,2632.8,3.87803088]
[1730893836638,4.65258598,2633.1,2632.8,0.07986088]
[1730893836840,4.65258598,2633.1,2632.7,3.79832]
[1730893837165,0.85478598,2633.1,2632.8,0.07986088]
[1730893837366,0.85478598,2633.1,2632.8,3.87808088]
[1730893837522,0.85478598,2633.1,2632.8,3.79822]
[1730893837725,0.7744,2633.1,2632.9,0.07981466]
[1730893838156,5.4172066,2633.1,2632.9,0.07981466]
[1730893838528,5.4172066,2633.1,2632.7,3.79835]
[1730893838884,1.6194066,2633.1,2633.0,0.00976844]
[1730893839164,1.6194066,2633.1,2633.0,0.07729461]
[1730893839329,3.87797598,2633.3,2632.9,3.79806]
[1730893839534,0.90588598,2633.3,2633.0,0.07729461]
[1730893839969,0.90588598,2633.3,2633.0,3.87520461]
[1730893840153,0.90588598,2633.3,2633.0,0.07729461]
[1730893840886,0.90588598,2633.3,2633.0,3.87522461]
[1730893841789,0.90588598,2633.3,2633.1,3.79778]
[1730893842094,5.0934616,2633.3,2633.2,0.07720219]
[1730893842276,5.17384758,2633.3,2632.9,3.79807]
[1730893842480,5.17384758,2633.3,2633.0,0.07729461]
[1730893842655,1.2958216,2633.3,2633.0,0.07729461]
[1730893843072,0.8255,2633.3,2633.0,0.07729461]
[1730893843477,0.8255,2633.3,2633.0,3.87519461]
[1730893844615,0.8255,2633.3,2633.0,0.07729461]
[1730893844905,0.7893,2633.5,2633.2,3.79759]
[1730893845068,0.7893,2634.0,2633.6,3.797]
[1730893845394,0.7893,2634.0,2633.7,3.79693]
[1730893845595,3.79638,2634.1,2633.7,3.87377921]
[1730893845957,3.79638,2634.1,2633.7,0.07684921]
[1730893846184,3.87689598,2634.0,2633.7,0.07684921]
[1730893846589,0.08038598,2634.0,2633.5,3.79711]
[1730893846754,4.65614598,2634.2,2633.8,0.07663674]
[1730893847055,4.65614598,2634.2,2633.9,0.07658686]
[1730893847256,4.65614598,2634.2,2633.7,3.79687]
[1730893847477,5.50137758,2634.2,2633.8,0.07663304]
[1730893847683,5.50137758,2634.2,2633.7,7.59374]
[1730893847684,1.70501758,2634.2,2633.7,7.59374]
[1730893847880,1.6246316,2634.2,2633.9,0.07658686]
[1730893848079,0.7572,2634.4,2634.0,3.79643]
[1730893848289,0.7572,2634.4,2634.0,3.87291634]
[1730893848515,0.83758598,2634.6,2634.2,3.7962]
[1730893848867,0.83758598,2634.6,2634.3,0.07372462]
[1730893849163,1.80050258,2634.6,2634.2,3.79613]
[1730893849405,1.7201166,2634.6,2634.4,0.07367845]
[1730893849612,0.9629166,2634.6,2634.3,3.86977462]
[1730893849806,0.7572,2634.8,2634.5,0.07363229]
[1730893849968,0.7572,2634.8,2634.4,0.07320552]
[1730893850313,4.55258,2634.8,2634.5,0.07309657]
[1730893850475,0.7572,2634.8,2634.2,3.79612]
[1730893850680,0.7572,2634.8,2634.6,0.07305041]
[1730893850681,1.2204666,2634.8,2634.6,0.07305041]
[1730893850914,1.2204666,2634.8,2634.4,3.79591]
[1730893851402,5.0158166,2634.8,2634.2,3.79611]
[1730893851707,1.2204666,2634.8,2634.4,3.79591]
[1730893852214,1.2204666,2634.8,2634.5,3.86879657]
[1730893852417,0.08038598,2635.1,2634.6,3.79563]
[1730893852705,5.8249,2635.3,2634.8,3.79534]
[1730893852910,5.90528598,2635.3,2634.8,3.79526]
[1730893853112,5.90528598,2635.3,2634.7,0.07292302]
[1730893853113,5.90528598,2635.3,2634.9,0.07277164]
[1730893853425,7.59021,2635.0,2634.5,3.79571]
[1730893853631,0.67091458,2635.2,2634.2,3.79618]
[1730893853632,3.79543,2634.8,2634.2,3.79618]
[1730893853782,3.87595598,2634.7,2634.2,3.79618]
[1730893853984,0.08038598,2634.7,2634.3,3.79603]
[1730893854481,3.87589598,2634.7,2634.3,3.79603]
[1730893854721,0.93040158,2634.7,2634.3,3.79603]
[1730893854925,4.72590158,2634.7,2634.2,3.79618]
[1730893855295,0.93040158,2634.7,2634.3,3.79606]
[1730893855484,4.72594158,2634.7,2634.2,3.79609]
[1730893855687,3.79585,2634.5,2634.0,4.59099]
[1730893855899,0.47262516,2634.5,2634.2,3.79614]
[1730893856232,3.79546,2634.8,2634.4,3.7959]
[1730893856426,3.7955,2634.7,2634.2,3.79619]
[1730893856834,3.7955,2634.7,2634.2,7.59229]
[1730893857139,3.7955,2634.7,2634.2,3.7961]
[1730893857426,3.79582,2634.5,2634.0,4.59101]
[1730893857610,0.3876206,2634.4,2634.0,8.38744]
[1730893857809,0.3876206,2634.4,2634.0,4.59101]
[1730893858532,0.3876206,2634.4,2634.1,0.07318155]
[1730893859116,4.1835706,2634.4,2634.1,0.07318155]
[1730893859804,0.3876206,2634.4,2634.1,0.07318155]
[1730893860004,0.3876206,2634.4,2634.0,3.79636]
[1730893860212,0.49402406,2634.3,2634.2,0.07313538]
[1730893860530,4.55265,2634.5,2634.2,0.07313538]
[1730893860707,0.7568,2634.5,2634.1,3.87224846]
[1730893860903,4.61999,2634.7,2634.3,0.0730892]
[1730893861105,4.61999,2634.7,2634.2,3.86918368]
[1730893861409,3.79565,2634.6,2634.4,0.07299134]
[1730893861622,4.6452526,2634.6,2634.3,0.0730375]
[1730893861930,4.6452526,2634.6,2634.4,0.07299134]
[1730893862143,4.6452526,2634.6,2634.2,3.7961]
[1730893862319,4.6452526,2634.6,2634.5,0.07294517]
[1730893862525,4.6452526,2634.6,2634.2,3.7961]
[1730893862701,4.6452526,2634.6,2634.5,0.07294517]
[1730893862900,4.6452526,2634.6,2634.2,3.7961]
[1730893863101,4.6452526,2634.6,2634.5,0.07294517]
[1730893863324,4.6452526,2634.6,2634.1,3.79635]
[1730893863541,4.6452526,2634.6,2634.5,0.07294517]
[1730893863850,4.6452526,2634.6,2634.2,3.79621]
[1730893864024,4.6452526,2634.6,2634.5,0.07297471]
[1730893864221,4.6452526,2634.6,2634.2,3.79621]
[1730893864420,4.6452526,2634.6,2634.5,0.07297471]
[1730893864621,4.6452526,2634.6,2634.1,3.79632]
[1730893864834,4.6452526,2634.6,2634.5,0.07297471]
[1730893865037,4.6452526,2634.6,2634.1,3.79632]
[1730893865245,0.8496026,2634.6,2634.5,0.07297471]
[1730893865409,0.8496026,2634.6,2634.2,3.79621]
[1730893865737,4.61991,2634.7,2633.8,3.79679]
[1730893866045,8.41549,2634.7,2634.3,0.07306335]
[1730893866208,3.79581,2634.5,2633.8,3.79667]
[1730893866409,3.79581,2634.5,2634.4,0.07301718]
[1730893866717,3.79658,2634.0,2633.5,4.62231]
[1730893867043,3.79658,2634.0,2633.6,3.79706]
[1730893867407,3.79633,2634.2,2633.7,3.79687]
[1730893867610,4.59881,2634.4,2633.5,0.8251]
[1730893867611,3.79608,2634.3,2633.8,3.79677]
[1730893867837,3.79608,2634.3,2633.8,3.79671]
[1730893868144,0.8028,2634.4,2634.1,3.79635]
[1730893868349,3.79607,2634.3,2633.8,3.79678]
[1730893868648,3.79623,2634.2,2633.7,4.56573]
[1730893869312,3.79649,2634.1,2633.5,4.56003]
[1730893869555,7.9806676,2634.1,2633.7,3.79693]
[1730893869841,0.3876876,2634.1,2633.7,3.79693]
[1730893870054,0.3876876,2634.1,2633.8,3.79679]
[1730893870416,0.3876876,2634.1,2633.5,0.7629]
[1730893870734,4.1840576,2634.1,2633.6,3.79702]
[1730893871112,4.1840576,2634.1,2633.7,3.79691]
[1730893871957,4.1840576,2634.1,2633.5,4.56008]
[1730893871958,4.21499576,2634.0,2633.5,4.56008]
[1730893872246,4.54876,2633.9,2633.5,3.79718]
[1730893873241,8.34552,2633.9,2633.6,0.07354172]
[1730893873447,3.79693,2633.7,2633.6,0.07354172]
[1730893873656,3.79693,2633.7,2633.2,3.79764]
[1730893873948,0.759373,2633.6,2633.2,3.79764]
[1730893875926,3.79679,2633.8,2633.3,3.79748]
[1730893876250,3.79679,2633.8,2633.2,3.79764]
[1730893876460,3.79696,2633.7,2633.2,7.59521]
[1730893877148,3.79696,2633.7,2633.2,3.79757]
[1730893877715,3.79696,2633.7,2633.2,7.59514]
[1730893877923,3.79696,2633.7,2633.2,3.79757]
[1730893878118,4.58008,2633.4,2632.8,3.79815]
[1730893878418,0.7827,2633.4,2632.9,3.79801]
[1730893879430,4.58008,2633.4,2632.9,3.79801]
[1730893879851,4.57604,2633.7,2633.1,4.61668]
[1730893880152,4.57604,2633.7,2633.3,3.79744]
[1730893880356,3.79709,2633.6,2633.2,3.79764]
[1730893880716,5.413328,2633.7,2633.1,4.61668]
[1730893880921,5.413328,2633.7,2633.3,3.7975]
[1730893881230,9.210378,2633.7,2633.2,3.79764]
[1730893881555,4.57605,2633.7,2633.2,3.79766]
[1730893881881,3.79715,2633.6,2633.1,4.61668]
[1730893882160,3.79731,2633.5,2633.0,3.79792]
[1730893882748,3.79708,2633.6,2633.1,3.79779]
[1730893883070,3.79733,2633.5,2633.1,0.07594743]
[1730893883222,3.79743,2633.4,2632.9,0.8128]
[1730893883416,3.79743,2633.4,2632.7,3.79827]
[1730893883417,4.5704,2633.3,2632.8,3.79821]
[1730893885163,3.79768,2633.2,2632.7,3.79827]
[1730893885321,3.79768,2633.2,2632.8,3.79816]
[1730893885522,0.7728,2633.3,2632.8,3.79816]
[1730893885747,4.57039,2633.3,2632.8,3.79816]
[1730893886247,3.79767,2633.2,2632.8,3.79816]
[1730893886533,3.79789,2633.1,2632.6,4.61372]
[1730893886860,4.63454,2633.2,2632.6,4.61372]
[1730893886861,0.83679,2633.2,2632.9,3.79807]
[1730893887728,0.7728,2633.3,2633.0,3.79786]
[1730893887921,3.79708,2633.6,2633.2,3.79762]
[1730893888150,3.87770598,2633.5,2633.3,0.07410882]
[1730893888347,3.87770598,2633.5,2633.0,3.79792]
[1730893888348,3.79737,2633.4,2633.0,3.79792]
[1730893888530,3.79737,2633.4,2633.1,0.07420124]
[1730893888952,0.7733,2633.3,2633.1,0.07420124]
[1730893889218,0.7733,2633.3,2632.9,3.79808]
[1730893889441,0.7733,2633.3,2633.2,0.07415503]
[1730893889640,0.7733,2633.3,2633.0,3.7979]
[1730893889836,0.7733,2633.3,2633.2,0.07415503]
[1730893890035,0.7733,2633.3,2633.1,0.07420124]
[1730893890326,0.7733,2633.3,2633.2,0.07415503]
[1730893890651,0.7733,2633.3,2633.0,3.7979]
[1730893890852,0.7733,2633.3,2633.2,0.07415503]
[1730893891067,3.79766,2633.2,2633.1,0.07420124]
[1730893891237,3.79766,2633.2,2632.7,3.79829]
[1730893891436,3.79782,2633.1,2632.6,3.79843]
[1730893891649,7.59574,2633.1,2632.6,3.79843]
[1730893892041,4.69694809,2633.1,2632.6,3.79843]
[1730893892568,4.69694809,2633.1,2632.7,3.79837]
[1730893892769,3.79766,2633.2,2632.6,3.87437952]
[1730893892932,3.79766,2633.2,2632.8,3.79823]
[1730893894153,1.39554094,2633.3,2632.8,3.79823]
[1730893894339,3.79775,2633.2,2632.7,3.79837]
[1730893894539,8.11483909,2633.2,2632.7,3.79837]
[1730893894739,4.31707909,2633.2,2632.8,3.7982]
[1730893894974,3.79775,2633.2,2632.8,3.7982]
[1730893895328,3.79775,2633.2,2632.4,0.8255]
[1730893895537,7.59551,2633.2,2632.7,3.79836]
[1730893895865,3.79775,2633.2,2632.7,3.79836]
[1730893896064,7.59553,2633.2,2632.5,3.79857]
[1730893896272,4.72318758,2633.1,2632.6,3.79847]
[1730893896943,4.6428016,2633.1,2632.7,3.79836]
[1730893898880,0.8449216,2633.1,2632.8,3.79817]
[1730893899181,4.57085,2633.3,2632.7,3.79836]
[1730893899343,3.7978,2633.1,2632.7,3.79836]
[1730893900251,7.59571,2633.1,2632.7,3.79836]
[1730893900450,3.7978,2633.1,2632.7,3.79836]
[1730893901505,7.59572,2633.1,2632.6,3.79849]
[1730893901669,4.6427406,2633.1,2632.6,3.79849]
[1730893901869,4.6427606,2633.1,2632.6,3.79849]
[1730893902072,8.4406706,2633.1,2632.6,3.79849]
[1730893902378,3.87843598,2633.0,2632.5,3.79865]
[1730893902567,0.7847,2632.9,2632.5,3.79865]
[1730893903293,0.7847,2632.9,2632.6,0.07334239]
[1730893903482,5.02967691,2632.9,2632.6,0.07334239]
[1730893905169,3.79838,2632.7,2632.6,0.07334239]
[1730893905532,0.8316,2632.3,2631.9,3.79952]
[1730893907480,4.63056,2632.3,2631.6,4.63246]
[1730893907690,5.18203058,2632.3,2631.8,3.79967]
[1730893908312,1.3026846,2632.3,2631.9,3.79946]
[1730893908609,0.8316,2632.3,2631.9,3.79946]
[1730893910884,0.8316,2632.3,2632.0,3.79938]
[1730893911110,0.8316,2632.3,2632.1,3.79923]
[1730893911415,0.86518598,2632.6,2632.1,3.79923]
[1730893911579,4.66371598,2632.6,2632.1,3.79923]
[1730893911910,5.50993558,2632.6,2632.1,3.79923]
[1730893912503,1.71140558,2632.6,2632.0,3.79938]
[1730893912672,0.86518598,2632.6,2632.2,3.7991]
[1730893913091,4.66370598,2632.6,2632.2,3.7991]
[1730893913382,0.7848,2632.6,2632.2,3.7991]
[1730893914082,0.7848,2632.6,2632.3,3.79895]
[1730893914675,0.7848,2632.6,2632.4,3.79878]
[1730893915126,0.758,2632.8,2632.4,3.79881]
[1730893915282,0.758,2632.8,2632.5,3.79865]
[1730893917581,4.55624,2632.8,2632.4,3.7988]
[1730893918292,4.55624,2632.8,2632.5,0.07132451]
[1730893919089,4.55624,2632.8,2632.4,3.79881]
[1730893919307,4.55624,2632.8,2632.6,0.07127828]
[1730893919524,5.21528385,2632.8,2632.5,0.07132451]
[1730893919750,3.79843,2632.7,2632.2,7.59814]
[1730893920022,9.01359385,2632.8,2632.3,3.87486152]
[1730893920226,5.21528385,2632.8,2632.4,3.7988]
[1730893920381,4.55624,2632.8,2632.4,3.7988]
[1730893920701,0.758,2632.8,2632.5,3.79866]
[1730893921091,4.55624,2632.8,2632.4,3.79879]
[1730893922024,0.758,2632.8,2632.4,3.79879]
[1730893922189,4.55633,2632.8,2632.3,3.79894]
[1730893923648,0.758,2632.8,2632.4,3.79873]
[1730893923848,0.7687,2633.0,2632.6,3.79839]
[1730893925818,0.7687,2633.0,2632.3,0.8301]
[1730893926205,0.7687,2633.0,2632.6,3.79844]
[1730893926404,4.56667,2633.0,2632.6,3.79844]
[1730893926623,5.4111626,2633.0,2632.6,3.79844]
[1730893927137,5.4111626,2633.0,2632.5,3.79864]
[1730893927334,3.79823,2632.8,2632.2,3.799]
[1730893927700,3.87850598,2632.9,2632.4,7.59756]
[1730893928001,3.87850598,2632.9,2632.4,3.79875]
[1730893928199,3.87850598,2632.9,2632.5,3.7986]
[1730893928399,1.6131926,2633.0,2632.5,3.7986]
[1730893928633,0.7687,2633.0,2632.6,3.79845]
[1730893930435,4.56673,2633.0,2632.5,3.79858]
[1730893930644,4.56673,2633.0,2632.6,3.7985]
[1730893931402,4.56673,2633.0,2632.5,3.79858]
[1730893931646,3.79816,2632.9,2632.5,7.59718]
[1730893931850,0.84908598,2633.0,2632.5,3.79858]
[1730893932146,3.79812,2632.9,2632.5,3.79856]
[1730893932506,4.20859545,2632.9,2632.5,3.79856]
[1730893932700,0.41047545,2632.9,2632.3,3.79883]
[1730893932907,3.79832,2632.8,2632.3,3.79883]
[1730893933343,4.62051,2632.7,2632.4,0.06881886]
[1730893933937,3.79852,2632.6,2632.4,0.06881886]
[1730893934319,3.79867,2632.5,2632.1,3.79914]
[1730893934525,3.79889,2632.4,2631.9,7.5989]
[1730893934840,3.79867,2632.5,2632.0,3.79938]
[1730893935004,0.7686,2632.4,2631.9,3.79951]
[1730893935339,0.7686,2632.4,2632.0,3.79934]
[1730893935541,0.7686,2632.4,2632.1,3.79923]
[1730893935841,0.7686,2632.6,2632.4,0.01101753]
[1730893936202,4.56719,2632.6,2632.4,0.01101753]
[1730893936644,4.64757598,2632.6,2632.4,0.01101753]
[1730893936839,5.49218258,2632.6,2632.4,0.01101753]
[1730893937015,3.79867,2632.5,2632.4,0.01101753]
[1730893938441,3.87905598,2632.5,2632.4,0.01101753]
[1730893939146,4.63995598,2632.5,2632.4,0.01101753]
[1730893941944,0.7758,2630.2,2629.7,4.56059801]
[1730893942165,0.7758,2630.0,2629.1,0.0682296]
[1730893942310,0.7758,2630.0,2629.8,0.0545806]
[1730893942508,4.57808,2630.0,2629.2,3.80343]
[1730893942708,0.08038598,2629.9,2629.2,3.80343]
[1730893942956,0.08038598,2629.9,2629.4,3.80309]
[1730893943137,0.08038598,2629.9,2629.3,0.05481229]
[1730893943449,3.88290598,2629.9,2629.4,0.05476594]
[1730893943742,3.80141,2630.6,2629.6,3.80285]
[1730893944049,0.08038598,2630.6,2629.8,3.80246]
[1730893944348,0.08038598,2630.7,2630.0,4.60831]
[1730893944709,0.08038598,2630.7,2630.1,0.05444163]
[1730893945104,0.08038598,2630.7,2630.2,3.80198]
[1730893945304,3.88137598,2630.9,2630.2,4.64845316]
[1730893945553,0.08038598,2630.9,2630.3,0.05434901]
[1730893945714,0.08038598,2630.9,2630.3,3.85616901]
[1730893946054,3.88122598,2631.0,2630.4,3.8017]
[1730893946207,7.68219598,2631.0,2630.5,0.05425639]
[1730893946412,3.88122598,2631.0,2630.3,3.80179]
[1730893946627,3.88122598,2631.0,2630.4,0.0543027]
[1730893946828,0.8187,2630.3,2629.1,0.0682296]
[1730893947011,0.8187,2630.3,2629.5,3.80288]
[1730893947012,3.80227,2630.1,2629.5,3.80288]
[1730893947253,0.08038598,2630.2,2629.6,3.80284]
[1730893947743,0.85048358,2630.2,2629.1,0.8612296]
[1730893947913,3.80227,2630.1,2629.4,3.80305]
[1730893948113,3.80227,2630.1,2629.5,3.803]
[1730893948114,0.08038598,2630.0,2629.5,3.803]
[1730893948313,0.08038598,2630.0,2629.5,3.85101847]
[1730893949158,3.88266598,2630.0,2629.5,0.04801847]
[1730893949445,3.88266598,2630.0,2629.3,3.80319]
[1730893949623,0.08038598,2630.0,2629.4,3.85194807]
[1730893950245,3.80243,2629.9,2629.4,0.04881807]
[1730893950406,3.80243,2629.9,2629.4,3.85195807]
[1730893950715,3.88281598,2629.9,2629.4,0.04881807]
[1730893950917,3.80271,2629.7,2629.4,0.04881807]
[1730893951139,3.80271,2629.7,2629.2,3.8034]
[1730893951446,3.80243,2629.9,2629.3,3.87933789]
[1730893951655,3.80243,2629.9,2629.4,0.04882547]
[1730893951972,3.88302598,2629.8,2629.4,0.04882547]
[1730893953110,3.80273,2629.7,2629.4,0.04882547]
[1730893953559,3.80273,2629.7,2629.1,4.6647196]
[1730893953761,3.80273,2629.7,2629.5,0.04877913]
[1730893953972,4.563254,2629.7,2629.1,8.4682096]
[1730893954160,4.563254,2629.7,2629.6,0.04873279]
[1730893954364,4.563254,2629.7,2629.1,4.6647196]
[1730893954566,4.563254,2629.7,2629.6,0.04873279]
[1730893954742,4.563254,2629.7,2629.1,8.4681996]
[1730893954743,4.563254,2629.7,2629.2,3.80342]
[1730893954943,3.80273,2629.7,2629.6,0.04873279]
[1730893955166,3.80273,2629.7,2629.2,3.80342]
[1730893955678,3.80273,2629.7,2629.3,0.04887181]
[1730893956041,0.08038598,2629.8,2629.3,0.04887181]
[1730893956454,3.88299598,2629.8,2629.3,0.04887181]
[1730893956883,3.88299598,2629.8,2629.3,3.85214181]
[1730893957066,3.80228,2630.0,2629.4,3.80314]
[1730893957440,3.88255598,2630.1,2629.5,3.85195716]
[1730893957644,9.61662,2630.3,2629.5,3.92794824]
[1730893957944,3.80235,2630.0,2629.5,3.85189716]
[1730893958365,3.88239598,2630.2,2629.5,3.85189716]
[1730893958564,4.85210558,2630.2,2629.5,0.04899716]
[1730893958766,3.80228,2630.0,2629.5,3.85198716]
[1730893959083,3.88266598,2630.0,2629.5,3.85191716]
[1730893959582,3.88266598,2630.0,2629.5,7.65483716]
[1730893959793,3.88266598,2630.0,2629.5,3.85191716]
[1730893960084,3.80228,2630.0,2629.5,7.65483716]
[1730893960241,3.88266598,2630.0,2629.5,3.85191716]
[1730893960579,3.88266598,2630.0,2629.5,3.85186716]
[1730893961401,3.80228,2630.0,2629.5,7.65478716]
[1730893962097,0.08038598,2629.9,2629.5,3.85186716]
[1730893963195,3.88281598,2629.9,2629.5,3.85186716]
[1730893964259,3.8026,2629.8,2629.5,0.04899716]
[1730893964464,0.08038598,2629.7,2629.2,3.80334]
[1730893964665,0.89628598,2629.7,2629.3,3.8523582]
[1730893965990,4.69903598,2629.7,2629.3,3.8523582]
[1730893966191,4.69903598,2629.7,2629.3,0.0490782]
[1730893966593,4.69903598,2629.7,2628.6,0.01]
[1730893966594,0.8284,2629.3,2628.4,3.8045]
[1730893966793,3.80366,2629.1,2628.7,3.80416]
[1730893967110,3.80366,2629.1,2628.6,3.80428]
[1730893967272,3.80366,2629.1,2628.5,3.80431]
[1730893967581,3.80366,2629.1,2628.5,7.60868]
[1730893967905,3.80374,2629.0,2628.5,4.565178]
[1730893968213,0.08038598,2629.0,2628.6,3.80421]
[1730893968508,4.63178,2629.3,2628.7,3.80414]
[1730893968509,0.08038598,2629.2,2628.7,3.80414]
[1730893968716,3.8036,2629.1,2628.6,3.8043]
[1730893968884,3.8036,2629.1,2628.6,3.88036791]
[1730893969309,3.80344,2629.2,2628.7,0.07607734]
[1730893969491,4.71207598,2629.3,2628.7,3.80404]
[1730893969700,4.71207598,2629.3,2628.7,4.564874]
[1730893969922,4.71207598,2629.3,2628.8,3.80401]
[1730893969923,4.63169,2629.3,2628.8,3.80401]
[1730893970081,4.63169,2629.3,2628.8,3.80394]
[1730893970281,0.8284,2629.3,2628.9,3.80386]
[1730893970508,0.8284,2629.3,2628.7,0.760834]
[1730893970509,3.88383598,2629.2,2628.7,0.760834]
[1730893970712,3.80398,2628.9,2628.2,3.80476]
[1730893970917,3.88450598,2628.8,2628.2,3.80488]
[1730893971127,3.88450598,2628.8,2628.3,3.80473]
[1730893971128,0.08038598,2628.8,2628.3,3.80473]
[1730893971419,0.87648598,2629.0,2628.6,3.80423]
[1730893971624,4.68021598,2629.0,2628.5,3.80441]
[1730893972222,0.87648598,2629.0,2628.5,3.80441]
[1730893972387,0.87648598,2629.0,2628.6,3.80428]
[1730893972388,0.7961,2629.0,2628.6,3.80428]
[1730893972586,0.08038598,2628.9,2628.6,0.04229699]
[1730893973826,3.88432598,2628.9,2628.6,0.04229699]
[1730893974334,3.88432598,2628.9,2628.7,0.04225062]
[1730893974627,3.88432598,2628.9,2628.4,3.80459]
[1730893974806,3.88432598,2628.9,2628.5,0.04234336]
[1730893975182,3.88432598,2628.9,2628.5,3.84678336]
[1730893976008,16.49286,2629.6,2629.0,3.80372]
[1730893976213,4.58765,2629.8,2629.2,3.80331]
[1730893976408,4.58765,2629.8,2629.3,3.80327]
[1730893976622,4.58765,2629.8,2629.3,3.84525723]
[1730893976920,4.261505,2629.7,2629.1,3.80347]
[1730893977425,3.80301,2629.5,2628.9,3.80377]
[1730893977629,3.80301,2629.5,2629.0,3.80372]
[1730893977794,3.80287,2629.6,2629.1,3.80357]
[1730893977991,0.458765,2629.7,2629.1,3.80357]
[1730893978217,0.785,2629.8,2629.4,3.80306]
[1730893980132,0.785,2629.8,2628.5,3.80434]
[1730893980133,3.80272,2629.7,2629.2,3.80334]
[1730893980613,0.785,2629.8,2629.2,3.80332]
[1730893980929,3.80289,2629.6,2629.1,3.80357]
[1730893981230,0.7665,2629.3,2628.5,3.8088]
[1730893981594,0.7665,2629.3,2628.9,3.80379]
[1730893981794,0.7665,2629.3,2629.0,3.80372]
[1730893982099,0.7665,2629.3,2629.1,0.0419841]
[1730893982491,0.7665,2629.3,2628.9,3.80384]
[1730893982825,0.7665,2629.3,2627.7,3.80548]
[1730893982826,3.80351,2629.2,2628.2,1.661963]
[1730893983031,3.80351,2629.2,2628.3,0.07607891]
[1730893983189,3.80366,2629.1,2628.3,0.04235503]
[1730893983387,1.223471,2629.3,2628.7,3.80406]
[1730893983840,5.026831,2629.3,2628.8,3.80392]
[1730893984135,5.026831,2629.3,2628.9,3.80379]
[1730893984136,0.7665,2629.3,2628.9,3.80379]
[1730893984501,0.7665,2629.3,2629.0,3.80364]
[1730893984701,0.7665,2629.3,2628.9,3.80379]
[1730893985037,0.7665,2629.3,2628.9,7.60756]
[1730893985238,0.7665,2629.3,2628.8,3.80393]
[1730893985401,1.523466,2629.3,2628.9,3.80373]
[1730893985604,0.7665,2629.3,2629.1,3.80358]
[1730893986136,0.7665,2629.3,2629.0,3.80372]
[1730893986635,0.7665,2629.3,2629.1,0.0419841]
[1730893987041,0.7665,2629.3,2628.9,3.80373]
[1730893987539,0.7665,2629.3,2628.9,7.6075]
[1730893987698,0.7665,2629.3,2628.9,3.80373]
[1730893987900,0.7665,2629.3,2629.0,3.80365]